[Event "World Junior U20 Girls 2018"]
[Site "Gebze"]
[Date "2018.09.07"]
[Round "4"]
[White "Hereklioglu, Sude"]
[Black "Georgescu, Lena"]
[Result "0-1"]
[ECO "E94"]
[WhiteElo "1930"]
[BlackElo "2195"]
[Annotator "NA"]
[PlyCount "66"]
[EventDate "2018.09.05"]
[EventType "swiss"]
[EventCountry "TUR"]
[SourceTitle "playchess.com"]
[Source "ChessBase"]
[SourceQuality "1"]
[TimeControl "40/5400+30:1800+30"]

1. d4 {[%emt 0:00:30]} Nf6 {[%emt 0:00:30]} 2. Nf3 {[%emt 0:00:30]} g6 {[%emt 0:02:30]} 3. c4 {[%emt 0:02:30]} Bg7 {[%emt 0:00:30]} 4. Nc3 {[%emt 0:00:30]} O-O {[%emt 0:00:00]} 5. e4 {[%emt 0:00:30]} d6 {[%emt 0:00:00]} 6. h3 {[%emt 0:01:30]} Na6 {[%emt 0:02:30]} 7. Be2 {[%emt 0:04:30]} Qe8 {[%emt 0:15:30]} 8. Be3 {[%emt 0:07:30]} e5 {[%emt 0:00:30]} 9. dxe5 {[%emt 0:01:30]} dxe5 {[%emt 0:00:00]} 10. O-O {[%emt 0:00:00]} Qe7 {[%emt 0:02:00]} 11. a3 {[%emt 0:05:00]} c6 {[%emt 0:00:30]} 12. b4 {[%emt 0:00:30]} Nh5 {[%emt 0:05:30] LiveBook: 3 Partien} 13. Qc1 {[%emt 0:08:30]} Nf4 $11 {[%emt 0:04:30]} 14. c5 {[%emt 0:04:30]} Nc7 {[%emt 0:07:30]} 15. Bc4 {[%emt 0:07:30]} g5 {[%emt 0:10:30]} 16. Nh2 {[%emt 0:07:30]} Nce6 {[%emt 0:05:30]} 17. Ne2 {[%emt 0:03:30]} Nxe2+ {[%emt 0:04:30]} 18. Bxe2 {[%emt 0:03:30]} Nf4 {[%emt 0:00:30]} 19. Qc2 {[%emt 0:02:30]} f5 {[%emt 0:09:30]} 20. Rad1 {[%emt 0:10:30]} Nxe2+ {[%emt 0:01:30]} 21. Qxe2 {[%emt 0:00:30]} f4 {[%emt 0:00:30]} 22. Bc1 {[%emt 0:00:30]} a5 {[%emt 0:04:30]} 23. Rd6 {[%emt 0:04:30]} axb4 {[%emt 0:00:30]} 24. axb4 {[%emt 0:01:30]} Be6 {[%emt 0:00:30]} 25. f3 {[%emt 0:01:30]} Ra2 {[%emt 0:02:30]} 26. Bb2 {[%emt 0:01:30]} Rfa8 {[%emt 0:03:03]} 27. Rb1 {[%emt 0:00:30]} h5 {[%emt 0:00:30]} 28. b5 {[%emt 0:05:10]} cxb5 {[%emt 0:03:15]} 29. Qxb5 {[%emt 0:00:21]} R2a5 {[%emt 0:01:29]} 30. Qb4 {[%emt 0:02:13]} Bf7 {[%emt 0:03:14]} 31. Bc3 {[%emt 0:05:40]} Qc7 {[%emt 0:01:09]} 32. c6 {[%emt 0:02:46]} bxc6 {[%emt 0:00:58]} 33. Rdd1 {[%emt 0:01:10]} Rb5 {[%emt 0:00:44]} 0-1

[Event "World Junior U20 Girls 2018"]
[Site "Gebze"]
[Date "2018.09.07"]
[Round "4"]
[White "Nass, Sara"]
[Black "Celik, Eda"]
[Result "1-0"]
[ECO "C99"]
[WhiteElo "1888"]
[BlackElo "1970"]
[Annotator "NA"]
[PlyCount "75"]
[EventDate "2018.09.05"]
[EventType "swiss"]
[EventCountry "TUR"]
[SourceTitle "playchess.com"]
[Source "ChessBase"]
[SourceQuality "1"]
[TimeControl "40/5400+30:1800+30"]

1. e4 {[%emt 0:00:30]} e5 {[%emt 0:00:30]} 2. Nf3 {[%emt 0:00:00]} Nc6 {[%emt 0:00:30]} 3. Bb5 {[%emt 0:00:00]} a6 {[%emt 0:00:00]} 4. Ba4 {[%emt 0:00:30]} Nf6 {[%emt 0:00:00]} 5. O-O {[%emt 0:00:00]} Be7 {[%emt 0:00:00]} 6. Re1 {[%emt 0:00:00]} b5 {[%emt 0:00:00]} 7. Bb3 {[%emt 0:00:30]} d6 {[%emt 0:00:00]} 8. c3 {[%emt 0:00:00]} O-O {[%emt 0:00:00]} 9. h3 {[%emt 0:00:00]} Na5 {[%emt 0:00:30]} 10. Bc2 {[%emt 0:00:00]} c5 {[%emt 0:00:00]} 11. d4 {[%emt 0:00:00]} Qc7 {[%emt 0:00:00]} 12. Nbd2 {[%emt 0:00:30]} cxd4 {[%emt 0:00:30]} 13. cxd4 {[%emt 0:00:30]} Nc6 {[%emt 0:00:00]} 14. Nb3 {[%emt 0:00:00]} a5 {[%emt 0:01:00]} 15. Be3 {[%emt 0:00:00]} a4 {[%emt 0:00:30]} 16. Nbd2 {[%emt 0:00:30]} Bd7 {[%emt 0:05:30]} 17. Rc1 {[%emt 0:00:30]} Qb7 {[%emt 0:00:30]} 18. d5 {[%emt 0:00:30]} Na5 {[%emt 0:06:30]} 19. Bd3 {[%emt 0:05:30]} Rfc8 {[%emt 0:03:30]} 20. Qe2 {[%emt 0:01:30]} Bd8 {[%emt 0:03:30]} 21. Nh2 {[%emt 0:14:30]} Bb6 {[%emt 0:08:30]} 22. Bxb6 {[%emt 0:05:30]} Qxb6 {[%emt 0:00:30]} 23. Ng4 {[%emt 0:01:30]} Nh5 {[%emt 0:04:30]} 24. Nh6+ {[%emt 0:11:30]} gxh6 {[%emt 0:00:00]} 25. Rxc8+ {[%emt 0:05:30]} Rxc8 {[%emt 0:00:00]} 26. Qxh5 {[%emt 0:00:00]} Qd8 {[%emt 0:06:30]} 27. Qxh6 {[%emt 0:04:00]} Qf8 {[%emt 0:02:30]} 28. Qh4 {[%emt 0:06:30]} f6 {[%emt 0:07:30]} 29. Re3 {[%emt 0:05:30]} Qe7 {[%emt 0:03:30]} 30. Rg3+ {[%emt 0:03:30]} Kh8 {[%emt 0:00:30]} 31. Rf3 {[%emt 0:10:30]} Rf8 {[%emt 0:00:30]} 32. Nf1 {[%emt 0:00:30]} Nb7 {[%emt 0:02:30]} 33. Ng3 {[%emt 0:02:30]} Nc5 {[%emt 0:00:30]} 34. Be2 {[%emt 0:03:30]} Be8 {[%emt 0:05:30]} 35. Nf5 {[%emt 0:00:30]} Qd8 {[%emt 0:02:30]} 36. Rg3 {[%emt 0:01:30]} Rg8 {[%emt 0:01:30]} 37. Rxg8+ {[%emt 0:03:27]} Kxg8 {[%emt 0:00:30]} 38. Qh6 {[%emt 0:00:00]} 1-0

[Event "World Junior U20 Girls 2018"]
[Site "Gebze"]
[Date "2018.09.07"]
[Round "4"]
[White "Nassr, Lina"]
[Black "Caglar, Sila"]
[Result "0-1"]
[ECO "E60"]
[WhiteElo "1854"]
[BlackElo "2208"]
[Annotator "NA"]
[PlyCount "92"]
[EventDate "2018.09.05"]
[EventType "swiss"]
[EventCountry "TUR"]
[SourceTitle "playchess.com"]
[Source "ChessBase"]
[SourceQuality "1"]
[TimeControl "40/5400+30:1800+30"]

1. d4 {[%emt 0:00:30]} Nf6 {[%emt 0:00:30]} 2. Nf3 {[%emt 0:00:30]} g6 {[%emt 0:00:30]} 3. e3 {[%emt 0:00:30]} Bg7 {[%emt 0:00:00]} 4. c4 {[%emt 0:00:00]} O-O {[%emt 0:01:00]} 5. Nc3 {[%emt 0:00:00]} d6 {[%emt 0:00:30]} 6. Be2 {[%emt 0:00:30]} Nbd7 {[%emt 0:01:30]} 7. O-O {[%emt 0:02:30]} e5 {[%emt 0:01:30]} 8. Qc2 {[%emt 0:02:30]} c6 {[%emt 0:06:30]} 9. b3 {[%emt 0:01:30]} Re8 {[%emt 0:02:30]} 10. Bb2 {[%emt 0:06:30]} Nf8 {[%emt 0:01:30] E60: King's Indian: Unusual lines and Fianchetto Variation without Nc3} (10... Qe7 11. b4 e4 12. Nd2 h5 13. a4 h4 14. h3 Nf8 15. Rfc1 Bf5 16. a5 Ne6 17. Qd1 Ng5 18. a6 {1-0 (68) Kovalyov,A (2658)-Shtembuliak,E (2517) Philadelphia 2018}) 11. dxe5 {[%emt 0:08:30]} dxe5 {[%emt 0:00:30]} 12. Rfd1 {[%emt 0:01:30]} Qa5 {[%emt 0:01:30]} 13. a3 {[%emt 0:02:30]} e4 {[%emt 0:01:30]} 14. Nd2 {[%emt 0:01:30]} Bf5 {[%emt 0:00:30]} 15. b4 {[%emt 0:01:30]} Qc7 {[%emt 0:00:30] [#]} 16. c5 $1 {[%emt 0:03:30]} Ng4 $146 {[%emt 0:12:30]} ({Predecessor:} 16... N8d7 17. Nc4 Ne5 18. Nd6 {1-0 (40) Krivonogov,A (2334)-Ershova,S (2264) St Petersburg 2000}) 17. g3 {[%emt 0:03:30]} h5 {[%emt 0:10:30]} 18. Nc4 {[%emt 0:12:30]} Nh7 {[%emt 0:03:30]} 19. Nd6 {[%emt 0:08:30]} Ng5 $14 {[%emt 0:01:30]} 20. Nxf5 {[%emt 0:03:30]} gxf5 {[%emt 0:05:30]} 21. Bxg4 {[%emt 0:00:30]} hxg4 {[%emt 0:12:30]} 22. Ne2 {[%emt 0:03:30]} Bxb2 {[%emt 0:04:30]} 23. Qxb2 {[%emt 0:00:00]} Re6 {[%emt 0:00:00]} 24. Nd4 {[%emt 0:07:00]} Qe5 {[%emt 0:04:00]} 25. Rab1 {[%emt 0:03:30]} Rh6 {[%emt 0:00:30]} 26. Kg2 {[%emt 0:00:30]} Kh7 {[%emt 0:12:17]} 27. Ne2 {[%emt 0:03:30]} Qe7 {[%emt 0:00:30]} 28. Nd4 {[%emt 0:03:57]} Kg6 {[%emt 0:05:19]} 29. b5 {[%emt 0:09:08]} Rah8 {[%emt 0:01:14]} 30. Rh1 {[%emt 0:05:32]} Nf3 {[%emt 0:01:35]} 31. bxc6 {[%emt 0:02:31]} Rxh2+ {[%emt 0:00:54]} 32. Rxh2 {[%emt 0:00:30]} Rxh2+ {[%emt 0:00:30]} 33. Kf1 {[%emt 0:00:00]} bxc6 {[%emt 0:01:45]} 34. Nxf3 {[%emt 0:04:17]} gxf3 {[%emt 0:01:11]} 35. Kg1 {[%emt 0:00:11]} Rg2+ {[%emt 0:00:30]} 36. Kf1 {[%emt 0:00:05]} Qxc5 {[%emt 0:00:29]} 37. Rc1 {[%emt 0:00:52]} Qf8 {[%emt 0:02:16]} 38. Rxc6+ {[%emt 0:01:18]} f6 {[%emt 0:00:02]} 39. Ke1 {[%emt 0:00:00]} Qh8 {[%emt 0:01:34]} 40. Qb3 {[%emt 0:01:07]} Qh1+ {[%emt 0:00:00]} 41. Kd2 {[%emt 0:00:32]} Rxf2+ {[%emt 0:00:54]} 42. Kc3 {[%emt 0:00:30]} Qc1+ {[%emt 0:00:30]} 43. Kb4 {[%emt 0:00:30]} Qb2 {[%emt 0:00:30]} 44. Qxb2 {[%emt 0:02:30]} Rxb2+ {[%emt 0:00:30]} 45. Ka5 {[%emt 0:00:30]} f2 {[%emt 0:00:30]} 46. Rc1 {[%emt 0:00:30]} Kg5 {[%emt 0:00:30]} 0-1

[Event "World Junior U20 Girls 2018"]
[Site "Gebze"]
[Date "2018.09.07"]
[Round "4"]
[White "Catal, Uktenur"]
[Black "Esti, Kubra Selenay"]
[Result "1/2-1/2"]
[ECO "A41"]
[WhiteElo "1809"]
[BlackElo "1662"]
[Annotator "NA"]
[PlyCount "39"]
[EventDate "2018.09.05"]
[EventType "swiss"]
[EventCountry "TUR"]
[SourceTitle "playchess.com"]
[Source "ChessBase"]
[SourceQuality "1"]
[TimeControl "40/5400+30:1800+30"]

1. d4 {[%emt 0:00:30]} g6 {[%emt 0:00:30]} 2. c4 {[%emt 0:00:30]} Bg7 {[%emt 0:00:00]} 3. e4 {[%emt 0:00:00]} d6 {[%emt 0:00:00]} 4. f4 {[%emt 0:03:00]} Nc6 {[%emt 0:01:30]} 5. Be3 {[%emt 0:01:30]} Nf6 {[%emt 0:08:30]} 6. d5 {[%emt 0:21:30]} Ng4 {[%emt 0:16:30]} 7. Bc1 $15 {[%emt 0:05:30]} Nd4 {[%emt 0:07:30]} 8. Nc3 {[%emt 0:09:30]} e5 {[%emt 0:10:30]} 9. g3 {[%emt 0:31:30]} O-O {[%emt 0:19:30]} 10. h3 {[%emt 0:05:36]} Nh6 {[%emt 0:02:30]} 11. Bg2 {[%emt 0:05:11]} f5 {[%emt 0:05:30]} 12. Nge2 {[%emt 0:01:21]} Nxe2 {[%emt 0:01:30]} 13. Qxe2 {[%emt 0:00:38]} fxe4 {[%emt 0:04:07]} 14. O-O {[%emt 0:02:12]} Nf5 {[%emt 0:01:25]} 15. Nxe4 {[%emt 0:00:17]} Nd4 {[%emt 0:09:55]} 16. Qd1 {[%emt 0:02:18]} Nf5 {[%emt 0:00:50]} 17. Qe2 {[%emt 0:01:02]} Nd4 {[%emt 0:01:11]} 18. Qd1 {[%emt 0:00:01]} Nf5 {[%emt 0:00:24]} 19. Qe2 {[%emt 0:00:03]} Nd4 {[%emt 0:00:21]} 20. Qd1 {[%emt 0:00:03]} 1/2-1/2

[Event "World Junior U20 Girls 2018"]
[Site "Gebze"]
[Date "2018.09.07"]
[Round "4"]
[White "Zairbek kyzy, Begimay"]
[Black "Kyrkjebo, Hanna B"]
[Result "1/2-1/2"]
[ECO "C47"]
[WhiteElo "1770"]
[BlackElo "1947"]
[Annotator "NA"]
[PlyCount "137"]
[EventDate "2018.09.05"]
[EventType "swiss"]
[EventCountry "TUR"]
[SourceTitle "playchess.com"]
[Source "ChessBase"]
[SourceQuality "1"]
[TimeControl "40/5400+30:1800+30"]

1. e4 {[%emt 0:00:30]} e5 {[%emt 0:00:30]} 2. Nf3 {[%emt 0:00:30]} Nc6 {[%emt 0:00:30]} 3. Nc3 {[%emt 0:00:00]} Nf6 {[%emt 0:00:30]} 4. Be2 {[%emt 0:00:00]} Bb4 {[%emt 0:04:30]} 5. Nd5 {[%emt 0:01:30]} Bc5 {[%emt 0:04:30]} 6. d3 {[%emt 0:00:30]} h6 {[%emt 0:01:30]} 7. c3 {[%emt 0:03:30]} d6 {[%emt 0:10:30]} 8. b4 {[%emt 0:02:30]} Bb6 {[%emt 0:00:30]} 9. O-O {[%emt 0:00:30]} Nxd5 {[%emt 0:03:30]} 10. exd5 {[%emt 0:00:00]} Ne7 {[%emt 0:00:00]} 11. Qb3 {[%emt 0:01:00]} O-O {[%emt 0:01:00]} 12. Be3 {[%emt 0:03:30]} Ng6 {[%emt 0:04:30]} 13. c4 {[%emt 0:01:30]} Bxe3 {[%emt 0:05:30]} 14. fxe3 {[%emt 0:00:30]} Qe7 {[%emt 0:02:30]} 15. Qc2 {[%emt 0:01:30]} Re8 {[%emt 0:03:30]} 16. Nd2 {[%emt 0:02:30]} c6 {[%emt 0:05:30]} 17. Bf3 {[%emt 0:00:30]} Nh4 {[%emt 0:02:30]} 18. Bh5 {[%emt 0:06:30]} Rf8 {[%emt 0:10:30]} 19. Rae1 {[%emt 0:02:30]} cxd5 {[%emt 0:03:30]} 20. cxd5 {[%emt 0:00:30]} Qg5 {[%emt 0:10:30]} 21. Bf3 {[%emt 0:00:30]} f5 {[%emt 0:04:30]} 22. Nc4 {[%emt 0:07:30]} Qe7 {[%emt 0:02:35]} 23. Bh5 {[%emt 0:01:30]} Qg5 {[%emt 0:03:33]} 24. Bd1 {[%emt 0:03:30]} Rd8 {[%emt 0:03:44]} 25. a4 {[%emt 0:01:30]} Bd7 {[%emt 0:01:11]} 26. Qf2 {[%emt 0:00:30]} Qf6 {[%emt 0:04:19]} 27. b5 {[%emt 0:04:30]} Ng6 {[%emt 0:00:39]} 28. Na5 {[%emt 0:01:30]} Rab8 {[%emt 0:03:18]} 29. e4 {[%emt 0:01:30]} Nf4 {[%emt 0:01:17]} 30. Re3 {[%emt 0:05:30]} Rdc8 {[%emt 0:00:43]} 31. Rg3 {[%emt 0:01:30]} Qd8 {[%emt 0:01:13]} 32. Nc4 {[%emt 0:00:30]} Nxd3 {[%emt 0:00:59]} 33. Qa2 {[%emt 0:01:30]} Rxc4 {[%emt 0:01:23]} 34. Qxc4 {[%emt 0:01:30]} Qb6+ {[%emt 0:00:35]} 35. Kh1 {[%emt 0:00:30]} Nf2+ {[%emt 0:00:30]} 36. Rxf2 {[%emt 0:00:30]} Qxf2 {[%emt 0:00:30]} 37. Rf3 {[%emt 0:00:30]} Qe1+ {[%emt 0:00:30]} 38. Rf1 {[%emt 0:00:30]} Qa5 {[%emt 0:00:30]} 39. exf5 {[%emt 0:00:30]} Rf8 {[%emt 0:00:30]} 40. g4 {[%emt 0:00:30]} Qd8 {[%emt 0:00:00]} 41. Re1 {[%emt 0:10:30]} Qh4 {[%emt 0:05:01]} 42. Re4 {[%emt 0:09:30]} Rc8 {[%emt 0:02:30]} 43. Qd3 {[%emt 0:01:30]} Rc1 {[%emt 0:03:30]} 44. Kg2 {[%emt 0:02:30]} Bxf5 {[%emt 0:08:56]} 45. gxf5 {[%emt 0:01:30]} Rxd1 {[%emt 0:00:13]} 46. Rxh4 {[%emt 0:01:30]} Rxd3 {[%emt 0:00:05]} 47. Rc4 {[%emt 0:00:30]} Rxd5 {[%emt 0:05:39]} 48. Rc7 {[%emt 0:00:30]} Rd4 {[%emt 0:04:02]} 49. Rxb7 {[%emt 0:01:30]} Rxa4 {[%emt 0:00:12]} 50. Rd7 {[%emt 0:00:30]} Rb4 {[%emt 0:01:17]} 51. Rxd6 {[%emt 0:01:30]} Rxb5 {[%emt 0:00:16]} 52. Ra6 {[%emt 0:00:00]} e4 {[%emt 0:02:38]} 53. f6 {[%emt 0:03:00]} Rg5+ {[%emt 0:02:03]} 54. Kh3 {[%emt 0:00:30]} gxf6 {[%emt 0:01:37]} 55. Rxf6 {[%emt 0:00:30]} Re5 {[%emt 0:00:00]} 56. Kg2 {[%emt 0:00:30]} e3 {[%emt 0:01:05]} 57. Kf1 {[%emt 0:00:00]} Kg7 {[%emt 0:00:22]} 58. Ra6 {[%emt 0:00:00]} Re7 {[%emt 0:00:00]} 59. h4 {[%emt 0:00:30]} h5 {[%emt 0:00:38]} 60. Ke2 {[%emt 0:00:30]} Kf8 {[%emt 0:00:39]} 61. Ra5 {[%emt 0:00:30]} Re6 {[%emt 0:00:40]} 62. Rxa7 {[%emt 0:00:30]} Re4 {[%emt 0:00:19]} 63. Rb7 {[%emt 0:01:30]} Ke8 {[%emt 0:00:32]} 64. Ra7 {[%emt 0:00:30]} Kf8 {[%emt 0:00:30]} 65. Rb7 {[%emt 0:00:00]} Rxh4 {[%emt 0:00:51]} 66. Kxe3 {[%emt 0:00:00]} Kg8 {[%emt 0:00:02]} 67. Kf3 {[%emt 0:00:30]} Rg4 {[%emt 0:00:29]} 68. Rb5 {[%emt 0:02:30]} Rg6 {[%emt 0:01:03]} 69. Ke4 {[%emt 0:00:30]} 1/2-1/2

[Event "World Junior U20 Girls 2018"]
[Site "Gebze"]
[Date "2018.09.07"]
[Round "4"]
[White "De Silva, Tenara"]
[Black "Varshini, V."]
[Result "1/2-1/2"]
[ECO "B55"]
[WhiteElo "1764"]
[BlackElo "2173"]
[Annotator "NA"]
[PlyCount "84"]
[EventDate "2018.09.05"]
[EventType "swiss"]
[EventCountry "TUR"]
[SourceTitle "playchess.com"]
[Source "ChessBase"]
[SourceQuality "1"]
[TimeControl "40/5400+30:1800+30"]

1. e4 {[%emt 0:00:30]} c5 {[%emt 0:00:30]} 2. Nf3 {[%emt 0:00:00]} d6 {[%emt 0:00:00]} 3. d4 {[%emt 0:00:00]} cxd4 {[%emt 0:00:00]} 4. Nxd4 {[%emt 0:00:30]} Nf6 {[%emt 0:00:30]} 5. f3 {[%emt 0:00:00]} e5 {[%emt 0:01:30]} 6. Bb5+ {[%emt 0:00:00]} Bd7 {[%emt 0:02:30]} 7. Bxd7+ {[%emt 0:00:30]} Qxd7 {[%emt 0:01:30]} 8. Nf5 {[%emt 0:00:30] B55: Sicilian: 2...d6 3 d4 cxd4 4 Nxd4 Nf6 5 f3} g6 {[%emt 0:06:30]} (8... d5 9. Bg5 dxe4 10. Bxf6 Qxd1+ 11. Kxd1 gxf6 12. fxe4 Rg8 13. g3 Na6 14. Nc3 Nc7 15. Ke2 Bb4 16. Nd1 Bc5 17. c3 Ne6 18. b4 Bb6 19. h4 h5 20. Nb2 {½-½ (40) Jakubowski,K (2561)-Pakleza,Z (2498) Katowice 2015}) 9. Ng3 {[%emt 0:01:30]} Bg7 {[%emt 0:00:30]} 10. c4 $146 {[%emt 0:00:00]} ({Predecessor:} 10. Nc3 Nc6 11. Bg5 O-O 12. Qd2 Ne7 13. O-O-O Rfd8 14. Kb1 b5 15. Bxf6 Bxf6 {½-½ (45) Bosch,J (2405)-Shahade,G (2300) Groningen 1997}) 10... Nc6 {[%emt 0:06:30]} 11. Nc3 {[%emt 0:02:00]} O-O {[%emt 0:04:30]} 12. Be3 {[%emt 0:00:30]} Rac8 {[%emt 0:13:30]} 13. Qd2 {[%emt 0:11:30]} Nd4 {[%emt 0:04:30]} 14. b3 {[%emt 0:03:30]} a6 {[%emt 0:08:30]} 15. O-O {[%emt 0:09:30]} b5 {[%emt 0:03:30]} 16. Bxd4 {[%emt 0:03:30]} exd4 {[%emt 0:00:30]} 17. Nd5 {[%emt 0:00:00]} Nxd5 {[%emt 0:01:30]} 18. cxd5 {[%emt 0:01:00]} Rc3 {[%emt 0:06:30]} 19. Ne2 {[%emt 0:03:30]} Qa7 $1 {[%emt 0:00:30]} 20. Kh1 {[%emt 0:01:30]} Re3 {[%emt 0:00:30]} 21. Rad1 {[%emt 0:02:30]} d3 $11 {[%emt 0:03:30]} (21... a5 $15) 22. Nf4 {[%emt 0:01:30]} Bh6 {[%emt 0:08:30]} 23. Nxd3 {[%emt 0:00:30]} f5 {[%emt 0:00:30]} 24. e5 {[%emt 0:04:30]} dxe5 {[%emt 0:04:30]} 25. Nxe5 {[%emt 0:00:30]} Qg7 {[%emt 0:01:30]} 26. Nc6 {[%emt 0:02:30]} Rxf3 {[%emt 0:02:32]} 27. Qb4 {[%emt 0:00:30]} Rxf1+ {[%emt 0:08:35]} 28. Rxf1 {[%emt 0:00:30]} Bg5 {[%emt 0:00:08]} 29. d6 {[%emt 0:00:30]} Bf6 {[%emt 0:02:11]} 30. Qc5 {[%emt 0:01:30]} Qd7 {[%emt 0:02:05]} 31. h3 {[%emt 0:03:30]} Re8 {[%emt 0:01:27]} 32. Qd5+ {[%emt 0:01:30]} Kg7 {[%emt 0:01:34]} 33. Rc1 {[%emt 0:04:30]} Re6 {[%emt 0:00:58]} 34. Rd1 {[%emt 0:01:30]} Re4 {[%emt 0:00:30]} 35. Kh2 {[%emt 0:00:30]} Bg5 {[%emt 0:03:31]} 36. Nd4 {[%emt 0:10:30]} Bf4+ {[%emt 0:01:33]} 37. Kh1 {[%emt 0:00:00]} Bxd6 {[%emt 0:00:19]} 38. Nf3 {[%emt 0:02:00]} Re6 {[%emt 0:00:07]} 39. Qd4+ {[%emt 0:01:30]} Kg8 {[%emt 0:00:48]} 40. Ng5 {[%emt 0:00:00]} Re8 {[%emt 0:00:00]} 41. Qd5+ {[%emt 0:04:00]} Kg7 {[%emt 0:01:42]} 42. Qd4+ {[%emt 0:00:30]} Kg8 {[%emt 0:01:30]} 1/2-1/2

[Event "World Junior U20 Girls 2018"]
[Site "Gebze"]
[Date "2018.09.07"]
[Round "4"]
[White "Yorgun, Yaren Naz"]
[Black "Santeramo, Alessia"]
[Result "0-1"]
[ECO "C47"]
[WhiteElo "1751"]
[BlackElo "2124"]
[Annotator "NA"]
[PlyCount "114"]
[EventDate "2018.09.05"]
[EventType "swiss"]
[EventCountry "TUR"]
[SourceTitle "playchess.com"]
[Source "ChessBase"]
[SourceQuality "1"]
[TimeControl "40/5400+30:1800+30"]

1. e4 {[%emt 0:00:30]} e5 {[%emt 0:00:30]} 2. Nf3 {[%emt 0:00:30]} Nc6 {[%emt 0:00:00]} 3. Nc3 {[%emt 0:00:30]} Nf6 {[%emt 0:00:00]} 4. d4 {[%emt 0:00:00]} exd4 {[%emt 0:00:30]} 5. Nxd4 {[%emt 0:00:00]} Bb4 {[%emt 0:00:30]} 6. Nxc6 {[%emt 0:00:00]} bxc6 {[%emt 0:00:30]} 7. Bd3 {[%emt 0:00:00]} d5 {[%emt 0:00:00]} 8. exd5 {[%emt 0:00:30]} cxd5 {[%emt 0:00:00]} 9. O-O {[%emt 0:00:30]} O-O {[%emt 0:00:30]} 10. h3 {[%emt 0:00:30] C47: Schottisches Vierspringerspiel} c6 {[%emt 0:00:30]} 11. Qf3 {[%emt 0:00:30]} Rb8 {[%emt 0:00:30]} (11... Bd6 12. Bf4 Be6 13. Rfe1 Bxf4 14. Qxf4 Qb8 15. Qxb8 Raxb8 16. Na4 Nd7 17. b3 c5 {½-½ (35) Nakamura,H (2777)-So,W (2780) Saint Louis 2018}) 12. Bf4 {[%emt 0:02:30]} Bd6 {[%emt 0:01:30]} 13. b3 {[%emt 0:04:30]} Re8 {[%emt 0:11:30]} 14. Ne2 {[%emt 0:03:30]} Qc7 {[%emt 0:16:30]} 15. Rfe1 {[%emt 0:24:30]} Bd7 {[%emt 0:09:30]} 16. Bxd6 {[%emt 0:02:30]} Qxd6 {[%emt 0:00:30]} 17. Qf4 {[%emt 0:00:30]} Re5 $146 {[%emt 0:02:30]} ({Vorgänger:} 17... Qxf4 18. Nxf4 {1-0 (59) Song,M (2315)-Mitkov,N (2479) Chicago 2015}) 18. Qd2 {[%emt 0:06:30]} Rbe8 {[%emt 0:04:30]} 19. Ng3 $11 {[%emt 0:03:30]} h5 {[%emt 0:10:30]} 20. Rxe5 {[%emt 0:04:30]} Qxe5 {[%emt 0:00:30]} 21. Rd1 {[%emt 0:00:30]} h4 {[%emt 0:03:30]} 22. Ne2 {[%emt 0:02:30]} Nh5 {[%emt 0:01:30]} 23. c4 {[%emt 0:03:30]} dxc4 {[%emt 0:06:30]} 24. Bxc4 {[%emt 0:00:30]} Be6 {[%emt 0:00:30]} 25. Bd3 {[%emt 0:13:30]} Bd5 {[%emt 0:01:30]} 26. b4 {[%emt 0:01:30]} Re6 {[%emt 0:03:30]} 27. a4 {[%emt 0:08:26]} g6 {[%emt 0:08:18]} 28. Nc3 {[%emt 0:04:12]} Nf4 {[%emt 0:01:07]} 29. Nxd5 {[%emt 0:00:49]} cxd5 {[%emt 0:00:30]} 30. Bf1 {[%emt 0:00:16]} g5 {[%emt 0:05:09]} 31. Qd4 {[%emt 0:03:59]} Qxd4 {[%emt 0:07:42]} 32. Rxd4 {[%emt 0:00:30]} Re1 {[%emt 0:00:30]} 33. Rd2 {[%emt 0:00:30]} Ra1 {[%emt 0:00:30]} 34. a5 {[%emt 0:01:09]} Ra4 {[%emt 0:00:39]} 35. g3 {[%emt 0:01:50]} hxg3 {[%emt 0:00:22]} 36. fxg3 {[%emt 0:00:00]} Ne6 {[%emt 0:00:08]} 37. Rxd5 {[%emt 0:00:16]} Rxb4 {[%emt 0:00:23]} 38. Rd7 {[%emt 0:01:54]} Nd4 {[%emt 0:00:51]} 39. Rxa7 {[%emt 0:01:20]} Rb2 {[%emt 0:00:02]} 40. Bg2 {[%emt 0:00:00]} Ne2+ {[%emt 0:00:00]} 41. Kf2 {[%emt 0:03:19]} Nf4+ {[%emt 0:05:19]} 42. Kf3 {[%emt 0:01:30]} Nxg2 {[%emt 0:00:30]} 43. Ra8+ {[%emt 0:00:30]} Kg7 {[%emt 0:00:30]} 44. a6 {[%emt 0:00:00]} f5 {[%emt 0:06:30]} 45. a7 {[%emt 0:00:00]} Ne1+ {[%emt 0:00:30]} 46. Ke3 {[%emt 0:00:30]} Ra2 {[%emt 0:00:30]} 47. Kd4 {[%emt 0:03:30]} Nf3+ {[%emt 0:03:30]} 48. Ke3 {[%emt 0:00:30]} Ng1 {[%emt 0:01:30]} 49. h4 {[%emt 0:01:30]} Ra3+ {[%emt 0:01:30]} 50. Kf2 {[%emt 0:00:30]} Nh3+ {[%emt 0:01:18]} 51. Kg2 {[%emt 0:00:30]} g4 {[%emt 0:00:15]} 52. h5 {[%emt 0:00:30]} Ng5 {[%emt 0:00:45]} 53. h6+ {[%emt 0:00:30]} Kh7 {[%emt 0:00:01]} 54. Rf8 {[%emt 0:00:30]} Rxa7 {[%emt 0:00:39]} 55. Rxf5 {[%emt 0:00:30]} Kxh6 {[%emt 0:00:31]} 56. Rf4 {[%emt 0:00:30]} Kh5 {[%emt 0:00:13]} 57. Kf1 {[%emt 0:00:30]} Rf7 {[%emt 0:00:18]} 0-1

[Event "World Junior U20 Girls 2018"]
[Site "Gebze"]
[Date "2018.09.07"]
[Round "4"]
[White "Gur, Tuba"]
[Black "Ayan, Bengu Sena"]
[Result "1/2-1/2"]
[ECO "A12"]
[WhiteElo "1724"]
[BlackElo "1976"]
[Annotator "NA"]
[PlyCount "49"]
[EventDate "2018.09.05"]
[EventType "swiss"]
[EventCountry "TUR"]
[SourceTitle "playchess.com"]
[Source "ChessBase"]
[SourceQuality "1"]
[TimeControl "40/5400+30:1800+30"]

1. d4 {[%emt 0:00:30]} d5 {[%emt 0:00:30]} 2. Nf3 {[%emt 0:00:30]} Nf6 {[%emt 0:00:30]} 3. e3 {[%emt 0:00:00]} Bg4 {[%emt 0:06:30]} 4. Be2 {[%emt 0:00:00]} Nbd7 {[%emt 0:01:30]} 5. Nbd2 {[%emt 0:02:30]} e6 {[%emt 0:01:30]} 6. O-O {[%emt 0:01:30]} Bd6 {[%emt 0:02:30]} 7. c4 {[%emt 0:00:00]} c6 {[%emt 0:00:00]} 8. b3 {[%emt 0:05:00]} O-O {[%emt 0:05:00]} 9. Bb2 {[%emt 0:00:00]} a6 {[%emt 0:03:30]} 10. Ne5 {[%emt 0:04:00]} Bxe2 {[%emt 0:03:30]} 11. Qxe2 {[%emt 0:00:30]} Ne8 {[%emt 0:04:30]} 12. f4 {[%emt 0:05:30]} f6 {[%emt 0:02:30]} 13. Nd3 {[%emt 0:02:30]} Qe7 {[%emt 0:03:30]} 14. c5 $14 {[%emt 0:09:30]} Bc7 {[%emt 0:01:30]} 15. Nf3 {[%emt 0:00:30]} g6 {[%emt 0:02:30]} 16. Rae1 {[%emt 0:03:30]} Ng7 {[%emt 0:02:30]} 17. e4 {[%emt 0:05:30]} dxe4 {[%emt 0:07:30]} 18. Qxe4 {[%emt 0:00:30]} Rfe8 {[%emt 0:03:30]} 19. b4 {[%emt 0:03:30]} Nf8 {[%emt 0:03:30]} 20. a4 {[%emt 0:13:30]} Qf7 {[%emt 0:04:30]} 21. h3 {[%emt 0:08:30]} Nf5 {[%emt 0:02:30]} 22. Rf2 {[%emt 0:02:30]} Ng3 {[%emt 0:06:30]} 23. Qe3 {[%emt 0:00:30]} Nf5 {[%emt 0:00:30]} 24. Qe4 {[%emt 0:03:30]} Ng3 {[%emt 0:03:30]} 25. Qe3 {[%emt 0:00:30]} 1/2-1/2